Cogmind - Beta 17 @@@ ROGUE MODE // 2026.07.26 @ 00:46:48 Player: shockman27 Result: Destroyed by as-67067 with Assembled Heavy Rifle Performance ------------- Evolutions (3) 1500 Regions Visited (12) 2400 Robots Destroyed (155) 775 Value Destroyed (4571) 4571 Prototype IDs (44) 880 Alien Tech Used (0) 0 Bonus (2269) 2269 TOTAL SCORE: 12395 Bonus ------- High Alert Combat Kills 37 Follower Combat Kills 132 Aligned with FarCom 300 Met Imprinter 300 Destroyed Z-Imprinter 1000 Triggered Deep Caves Wall 500 Cogmind --------- Core Integrity 0/700 Matter 46/300 Energy 100/100 System Corruption 0% Temperature Cool (0) Movement Core (50) Location -7/Deep Caves Parts ------- > --- POWER (1) -------- (None) > --- PROPULSION (4) --- Assembled Alloy Leg > --- UTILITY (6) ------ GOLEM Unit > --- WEAPON (2) ------- (None) > --- INVENTORY (5) ---- Zionite Light DM Reactor Experimental Heat Sink Improved Cooling System Graphene Brace Missile Launcher Peak State ------------ > --- POWER ------------ Zionite Light DM Reactor > --- PROPULSION ------- Flying Fortress v7 > --- UTILITY ---------- Improved Cooling System Improved Cooling System Large Storage Unit Core Analyzer Zionite Heavy Carapace > --- WEAPON ----------- Zionite Laser-S CR-A16's Pointy Stick > --- INVENTORY -------- Zionite Light DM Reactor Zionite Light DM Reactor Experimental Heat Sink Experimental Heat Sink Improved Cooling System Zionite Biocell Tactical Coordination Suite Phase Shifter Zionite Heavy Carapace Graphene Brace Improved Shield Generator Shock Bomb Launcher Missile Launcher Heavy Missile Launcher [Rating: 83] Favorites ----------- Power Cooled Ion Engine Engine Cooled Ion Engine Power Core Nuclear Core Reactor Zionite Light DM Reactor Propulsion Light Treads Treads Light Treads Leg Assembled Alloy Leg Wheel Armored Wheel Flight Unit Flying Fortress v7 Utility Advanced Targeting Computer Device Improved Cooling System Storage Large Storage Unit Processor Advanced Targeting Computer Hackware Hacking Suite Protection Medium Armor Plating Weapon Minigun Energy Gun Medium Laser Energy Cannon Advanced Beam Cannon Ballistic Gun Minigun Ballistic Cannon Light Cannon Launcher Heavy Missile Launcher Special Weapon RU-N14's Throwing Claymores Slashing Weapon Scythe Piercing Weapon CR-A16's Pointy Stick Build | -11 -10 -10 -9 -9 -9 -8 -8 -7 -7 -7 -7 -7 ------- Run | Yrd Mat Min Mat Min Exi Min Mat Fac Low Low Zio Dee Slots Evolved 6 | . . . 2 . . . 2 2 . . . . Power . | . . . . . . . . . . . . . Propulsion 2 | . . . 1 . . . . 1 . . . . Utility 4 | . . . 1 . . . 2 1 . . . . Weapon . | . . . . . . . . . . . . . Parts Attached 107 | 8 8 5 24 2 1 1 18 14 4 3 5 14 Power 10 | 1 . . 4 . . . 1 . . 1 1 2 Engine 6 | 1 . . 2 . . . 1 . . 1 1 . Core 2 | . . . 2 . . . . . . . . . Reactor 2 | . . . . . . . . . . . . 2 Propulsion 24 | 2 2 2 10 . . . 7 1 . . . . Treads 21 | 2 . 2 10 . . . 7 . . . . . Leg . | . . . . . . . . . . . . . Wheel 2 | . 2 . . . . . . . . . . . Hover . | . . . . . . . . . . . . . Flight 1 | . . . . . . . . 1 . . . . Utility 40 | 2 2 1 3 1 1 . 8 10 3 2 1 6 Device 18 | 1 1 . 1 1 . . 4 6 1 . 1 2 Storage 6 | 1 1 . . . 1 . . 1 . 1 . 1 Processor 3 | . . . 1 . . . 1 1 . . . . Hackware 1 | . . . . . . . 1 . . . . . Protection 12 | . . 1 1 . . . 2 2 2 1 . 3 Artifact . | . . . . . . . . . . . . . Weapon 33 | 3 4 2 7 1 . 1 2 3 1 . 3 6 Energy Gun 3 | 1 . . . . . . . . . . . 2 Energy Cannon 10 | . 1 1 2 1 . . 2 3 . . . . Ballistic Gun 6 | 2 . . 3 . . 1 . . . . . . Ballistic Cannon 2 | . 1 1 . . . . . . . . . . Launcher 5 | . 1 . 1 . . . . . 1 . 1 1 Special Weapon 5 | . 1 . . . . . . . . . 2 2 Impact Weapon . | . . . . . . . . . . . . . Slashing Weapon 1 | . . . 1 . . . . . . . . . Piercing Weapon 1 | . . . . . . . . . . . . 1 Special Melee Weapon . | . . . . . . . . . . . . . Unidentified Prototypes 7 | . . . . . . . . . . . 1 6 Parts Lost 20 | . . 3 2 1 . . 2 1 . . . 11 Power 3 | . . 1 1 . . . . . . . . 1 Propulsion 3 | . . . 1 . . . 1 . . . . 1 Utility 9 | . . 1 . 1 . . 1 1 . . . 5 Weapon 5 | . . 1 . . . . . . . . . 4 Highest Loss Streak 4 | . . 2 1 1 . . 2 1 . . . 4 To Critical Strikes . | . . . . . . . . . . . . . Average Backups 14 | 3 11 14 14 14 14 16 16 14 15 15 14 13 Power . | . 1 1 . 1 1 1 1 1 1 1 1 1 Propulsion 4 | 1 4 5 3 5 4 6 6 3 3 3 1 . Utility 4 | . 2 4 5 4 4 4 3 5 6 6 6 7 Weapon 4 | 1 4 4 4 4 5 4 6 5 5 5 6 4 Tool/Special . | . . . . . . . . . . . . . Unused Backups 43 | . 4 1 14 . . . 5 8 . . 5 6 Power 3 | . 1 . 1 . . . . . . . . 1 Propulsion 8 | . 2 . 1 . . . 1 1 . . 3 . Utility 21 | . 1 1 8 . . . 2 3 . . 1 5 Weapon 11 | . . . 4 . . . 2 4 . . 1 . Tool/Special . | . . . . . . . . . . . . . Average Slot Usage (%) 90 | . 100 99 99 95 77 99 97 75 76 76 75 67 Engine 9 | . 14 13 5 11 11 11 9 7 7 7 7 3 Core 1 | . . . 5 . . . . . . . . . Treads 24 | . 27 27 32 33 33 33 27 . . . . . Flight 1 | . . . . . . . . 6 7 7 7 6 Device 10 | . 14 13 2 1 11 11 10 14 15 21 21 14 Storage 10 | . 14 14 11 11 11 11 9 7 7 7 7 6 Processor 9 | . . . 9 11 11 11 9 14 15 15 15 11 Hackware 1 | . . . . . . . 8 4 . . . . Protection 3 | . . . 9 5 . . 5 2 6 1 . 6 Energy Cannon 9 | . 12 13 10 1 . 10 17 14 15 15 8 5 Ballistic Gun 5 | . 10 . 8 17 . 9 . . . . . . Ballistic Cannon 1 | . 2 14 1 . . . . . . . . . Peak Build Rating 83 | 7 10 13 24 22 22 25 37 71 71 72 76 83 Average Rating 29 | 5 7 9 20 21 17 24 31 64 68 71 72 68 On Entrance 33 | . 7 8 11 22 22 19 25 37 71 68 72 70 Avg Prop Armor Cover (%) . | . . . . . . . . . . . . . Naked Turns 5 | . . . . . . . . . . . . 5 Heaviest Build 70 | 15 32 36 43 42 49 57 70 70 50 50 50 52 Greatest Support 63 | 40 40 42 63 63 63 63 63 60 50 50 50 50 Greatest Overweight (x) 2 | . 1 1 1 . . . 1 1 . . . 2 Average Overweight (x) . | . . . . . . . . . . . . . Largest Inventory Capacity 20 | 8 15 15 15 15 20 20 20 20 15 15 15 15 Average Capacity 15 | 7 13 15 15 15 17 20 20 15 15 15 15 14 Most Carried 20 | 5 15 15 15 15 20 20 20 20 15 15 15 15 Average Carried 15 | 4 11 14 14 14 16 19 19 15 15 15 14 13 Final Capacity 20 | 8 15 15 15 15 20 20 20 15 15 15 15 5 Final Carried 20 | 5 15 15 15 14 20 20 20 15 15 15 15 5 Class Distribution -------------------- 92% | Mutant 7% | Scavenger-Mutant Dominant Class ---------------- Mutant | -10/Materials Mutant | -10/Mines Mutant | -9/Materials Mutant | -9/Mines Mutant | -9/Exiles Mutant | -8/Mines Scavenger-Mutant | -8/Materials Mutant | -7/Factory Mutant | -7/Lower Caves Mutant | -7/Lower Caves Mutant | -7/Zion Mutant | -7/Deep Caves Resources | -11 -10 -10 -9 -9 -9 -8 -8 -7 -7 -7 -7 -7 ----------- Run | Yrd Mat Min Mat Min Exi Min Mat Fac Low Low Zio Dee Matter Collected 3523 | 313 534 96 1060 358 4 159 296 249 73 113 72 196 Remotely . | . . . . . . . . . . . . . Salvage Created 5549 | 118 542 23 1700 457 . 43 938 496 116 514 . 602 Parts 310 | 19 33 4 107 33 . 10 46 23 3 17 . 15 Haulers Intercepted 15 | . 2 . 6 . . . 3 4 . . . . Recyclers Shooed 5 | . . . 4 . . . 1 . . . . . Parts Field Recycled . | . . . . . . . . . . . . . Retrieved Matter . | . . . . . . . . . . . . . Parts Self-Destructed 19 | . . . . . . . . . 3 16 . . Prevented . | . . . . . . . . . . . . . Parts Restored . | . . . . . . . . . . . . . Kills | -11 -10 -10 -9 -9 -9 -8 -8 -7 -7 -7 -7 -7 ------- Run | Yrd Mat Min Mat Min Exi Min Mat Fac Low Low Zio Dee Combat Hostiles Destroyed 114 | . 12 3 34 13 . 4 10 5 4 9 . 20 Melee 1 | . . . . . . . . . . . . 1 Guns 19 | . 1 . 8 10 . . . . . . . . Cannons 51 | . 8 3 17 . . . 9 4 2 6 . 2 AOE 36 | . 3 . 9 3 . 4 . . 2 . . 15 Classes Destroyed 19 | 2 5 . 6 1 . . 1 1 1 . . 2 Worker 7 | 1 . . 1 3 . 1 1 . . . . . Builder 2 | . . . 2 . . . . . . . . . Tunneler 9 | 6 . . 1 2 . . . . . . . . Hauler 15 | . 2 . 6 . . . 3 4 . . . . Recycler 4 | . . . 2 . . . 2 . . . . . Mechanic 1 | . . . 1 . . . . . . . . . Operator 4 | . 1 . 3 . . . . . . . . . Watcher 7 | . 1 . 2 . . . 3 1 . . . . Swarmer 24 | . 3 3 8 4 . 4 . . 2 . . . Grunt 42 | . 9 . 13 8 . . 4 3 . 5 . . Brawler 4 | . . . 2 . . . . . . 2 . . Duelist 1 | . . . 1 . . . . . . . . . Sentry 18 | . . . 10 . . . 5 1 1 1 . . Demolisher 1 | . . . . . . . 1 . . . . . Hunter 2 | . . . . . . . . . 1 1 . . Programmer 1 | . . . . . . . . 1 . . . . Z-Light 11 | . . . . . . . . . . . . 11 Assembled 7 | . . . . 1 . . . . . . . 6 Golem 2 | . . . . . . . . . . . . 2 Best Kill Streak 6 | 3 3 3 6 4 . 4 3 2 3 4 . 3 Combat Bots Only 6 | . 3 3 6 4 . 4 2 2 3 4 . 3 Max Kills in Single Turn 3 | 2 2 1 3 2 . 2 1 1 2 1 . 2 Gunslinging . | . . . . . . . . . . . . . Exploded 2 | . 2 . 2 2 . 2 . . 2 . . 2 Melee 1 | . . . . . . . . . . . . 1 Uniques/NPCs Destroyed 1 | . . . . . . . . . . . . 1 Z-Imprinter (-7/Deep Caves) Combat | -11 -10 -10 -9 -9 -9 -8 -8 -7 -7 -7 -7 -7 -------- Run | Yrd Mat Min Mat Min Exi Min Mat Fac Low Low Zio Dee Hostile Shots Fired 469 | . 47 27 100 31 . 6 23 35 27 34 . 139 Missed 146 | . 10 4 29 14 . 2 5 20 17 9 . 36 Hits 323 | . 37 23 71 17 . 4 18 15 10 25 . 103 Melee 12 | . . . 3 1 . . . . . . . 8 Projectile 311 | . 37 23 68 16 . 4 18 15 10 25 . 95 AOE 17 | . . 14 . . . . 3 . . . . . Critical Strikes 7 | . 1 . 2 . . . 1 . . 3 . . Actively Blocked 1 | . . . . . . . . . . 1 . . Part Disruptions 1 | . . . . . . . . . . . . 1 Damage Taken 6576 | . 471 622 881 217 . 75 527 157 116 382 . 3128 Core 1164 | . 102 90 100 28 . 20 105 11 . 32 . 676 Absorbed by Shields . | . . . . . . . . . . . . . Regen/Repaired (Parts) 645 | . . . 102 . . . . . . . 543 . Core Remaining (%) 66 | 100 . 23 . . . 63 80 . . . . . Volleys Fired 380 | 11 46 8 115 32 . 7 47 35 9 20 2 48 Largest 2 | 2 2 2 2 2 . 2 2 2 2 2 2 2 Hottest 160 | 70 100 97 97 93 . 93 143 160 160 160 160 160 Shots Fired 695 | 22 87 16 218 61 . 14 90 65 18 40 3 61 Gun 230 | 22 35 . 103 54 . 6 . . . . . 10 Cannon 411 | . 47 16 105 4 . 5 90 65 17 40 3 19 Launcher 44 | . 3 . 10 3 . 3 . . 1 . . 24 Special 10 | . 2 . . . . . . . . . . 8 Kinetic 233 | 11 41 8 113 54 . 6 . . . . . . Thermal 405 | 11 43 8 95 4 . 5 90 62 17 40 3 27 Explosive 39 | . 3 . 10 3 . 3 . . 1 . . 19 Electromagnetic 18 | . . . . . . . . 3 . . . 15 Robot Hit Streak 17 | 3 7 5 17 16 . 10 11 7 7 17 . 16 Robot Miss Streak 6 | 2 3 3 4 2 . 1 3 6 2 1 . 2 Penetration Max . | . . . . . . . . . . . . . Secondary Targets 1 | . . . . 1 . . . . . . . . Max Gunslinging Chain 1 | . . . . 1 . . . . . . . . Shots Hit Robots 428 | 10 47 11 141 48 . 6 55 30 8 34 . 38 Core Hits 221 | 7 22 2 66 21 . 5 26 13 5 14 . 40 Critical Kills 4 | . . . 1 . . . 1 . . 2 . . Critical Parts Destroyed 2 | . 1 . . 1 . . . . . . . . Critical Strikes 9 | . 1 . 1 1 . . 1 . . 2 . 3 Meltdown 3 | . . . . . . . 1 . . 2 . . Destroy 3 | . 1 . 1 1 . . . . . . . . Sever 2 | . . . . . . . . . . . . 2 Impale 1 | . . . . . . . . . . . . 1 Melee Attacks 22 | . . . 8 7 . . 3 1 . . . 3 Impact . | . . . . . . . . . . . . . Slashing 19 | . . . 8 7 . . 3 1 . . . . Piercing 3 | . . . . . . . . . . . . 3 Sneak Attacks 8 | . . . 5 3 . . . . . . . . Combat Hostiles . | . . . . . . . . . . . . . Follow-up Attacks . | . . . . . . . . . . . . . Damage Inflicted 13372 | 137 879 299 3810 1283 . 369 1354 802 302 860 . 3277 Guns 2347 | 137 214 . 1041 750 . 63 . . . . . 142 Cannons 5960 | . 516 244 1586 82 . 83 1354 802 180 860 . 253 Explosions 4128 | . 149 43 792 262 . 223 . . 122 . . 2537 Melee 623 | . . . 367 189 . . . . . . . 67 Ramming 67 | . . 12 24 . . . . . . . . 31 Kinetic 2574 | 75 291 170 1225 750 . 63 . . . . . . Thermal 5744 | 62 439 117 1402 82 . 83 1354 772 180 860 . 393 Explosive 3854 | . 149 . 792 262 . 223 . . 122 . . 2306 Electromagnetic 263 | . . . . . . . . 30 . . . 233 Impact . | . . . . . . . . . . . . . Slashing 803 | . . . 367 189 . . . . . . . 247 Piercing 67 | . . . . . . . . . . . . 67 Highest Corruption 4 | . . . 2 2 2 2 . 4 4 4 4 . Average Corruption 2 | . . . 2 2 2 2 . 3 4 4 4 . Corruption Purged . | . . . . . . . . . . . . . Corruption Blocked . | . . . . . . . . . . . . . Effects 118 | . . . 30 19 18 14 . 21 4 9 3 . Message Errors 29 | . . . 7 4 5 6 . 4 1 1 1 . Matter Fused 22 | . . . 4 3 4 1 . 7 . 3 . . Heat Flow Errors 12 | . . . 3 1 1 2 . 4 . 1 . . Energy Discharges 17 | . . . 5 5 2 1 . 1 . 2 1 . Parts Rejected 1 | . . . 1 . . . . . . . . . Parts Fused 3 | . . . 1 . 1 . . 1 . . . . Data Loss (minor) 15 | . . . 2 5 1 . . 3 2 1 1 . Data Loss (major) 7 | . . . 3 1 3 . . . . . . . Misfires 6 | . . . 1 . . 3 . 1 1 . . . Alerts 4 | . . . 1 . 1 1 . . . 1 . . Weapon Failures 2 | . . . 2 . . . . . . . . . Overload Shots . | . . . . . . . . . . . . . Overflow Damage 396 | . . 41 99 69 . 1 32 . 30 3 . 121 Projectiles 62 | . . 19 3 . . 1 32 . . 3 . 4 Explosions 135 | . . 22 . 5 . . . . 30 . . 78 Melee 199 | . . . 96 64 . . . . . . . 39 Knockbacks 5 | . . 3 2 . . . . . . . . . Impact . | . . . . . . . . . . . . . Kinetic 5 | . . 3 2 . . . . . . . . . Secondary . | . . . . . . . . . . . . . Self-Inflicted Damage 65 | . 15 27 9 . . . . . . . . 14 Shots 3 | . 1 1 1 . . . . . . . . . Rammed 17 | . . 3 3 . . . . . . . . 11 Targets Rammed 17 | . . 3 3 . . . . . . . . 11 Kicked . | . . . . . . . . . . . . . Crushed . | . . . . . . . . . . . . . Highest Temperature 311 | 27 273 226 311 213 103 210 182 212 . 190 . 16 Average Temperature 68 | 10 82 106 79 28 57 53 47 48 . 73 . 9 Received Heat Transfer 1790 | . 261 . 252 99 . . 153 27 6 234 . 758 Effects 5 | . . 1 1 . . 3 . . . . . . Energy Bleed 2 | . . 1 1 . . . . . . . . . Interference 3 | . . . . . . 3 . . . . . . Siege Activations . | . . . . . . . . . . . . . Martial Activations . | . . . . . . . . . . . . . Shielding Activations . | . . . . . . . . . . . . . Robots Disrupted . | . . . . . . . . . . . . . Combat Hostiles . | . . . . . . . . . . . . . Robots Corrupted 3 | . . . . . . . . 1 . . . 2 Combat Hostiles 3 | . . . . . . . . 1 . . . 2 Parts Fried 2 | . . . . . . . . 2 . . . . Impact Corruptions . | . . . . . . . . . . . . . Robots Melted 4 | . . . . . . . 1 . . 3 . . Combat Hostiles 4 | . . . . . . . 1 . . 3 . . Parts Melted 19 | . 1 . 3 . . . 5 5 1 3 . 1 Heat Transferred 10067 | 185 925 198 2516 148 . 148 2183 1333 350 1700 . 381 Parts Sabotaged . | . . . . . . . . . . . . . Parts Stolen . | . . . . . . . . . . . . . Parts Stripped . | . . . . . . . . . . . . . Power Chain Reactions . | . . . . . . . . . . . . . Alert | -11 -10 -10 -9 -9 -9 -8 -8 -7 -7 -7 -7 -7 ------- Run | Yrd Mat Min Mat Min Exi Min Mat Fac Low Low Zio Dee Maximum Alert Level 2 | . . . 2 . . 1 . . . . . . Low Security (%) 81 | 100 100 100 21 100 . 98 100 100 . . . . Level 1 9 | . . . 37 . . 1 . . . . . . Level 2 9 | . . . 40 . . . . . . . . . Level 3 . | . . . . . . . . . . . . . Level 4 . | . . . . . . . . . . . . . Level 5 . | . . . . . . . . . . . . . High Security . | . . . . . . . . . . . . . Max Security . | . . . . . . . . . . . . . Peak Influence 517 | 15 123 90 517 153 . 204 185 48 . . . . Initial 153 | . 3 35 10 153 . . . 48 . . . . Average 110 | 1 54 13 308 62 . 51 83 11 . . . . Influence Increases 3788 | 35 469 98 1142 338 . 279 674 318 90 345 . . Destroy 0b10 Robot/C 1980 | . 240 60 680 240 . 160 240 100 80 180 . . Destroy 0b10 Robot/NC 245 | 35 20 . 90 25 . 5 45 25 . . . . Destroy Leader 504 | . 76 10 196 30 . 30 92 30 10 30 . . Allied During Kill 41 | . . . . 2 . 24 15 . . . . . Successful Hack 140 | . 31 . 4 . . . 33 72 . . . . Select Force Hacks 60 | . 60 . . . . . . . . . . . Disable Machine 150 | . 15 15 45 . . 15 45 15 . . . . Anti-Garrison Action 150 | . . . . . . . 150 . . . . . Destroy Structure 143 | . 27 13 52 26 . 15 9 1 . . . . Partial Spotted 15 | . . . . . . . . 15 . . . . Lose Combat Pursuer 360 | . . . 75 15 . 30 45 60 . 135 . . Influence Decreases 3788 | 30 382 162 775 733 . 279 567 407 88 174 191 . Entered New Map 581 | . 2 57 18 242 . . . 59 8 4 191 . Time Decay 2787 | 30 380 85 587 481 . 259 427 288 80 170 . . Lost Part 70 | . . 20 20 10 . . 10 10 . . . . Lost Ally 60 | . . . . . . 20 40 . . . . . Purge Threat 290 | . . . 150 . . . 90 50 . . . . Squads Dispatched 20 | . 6 . 5 1 . . 4 4 . . . . Investigation 7 | . 5 . 1 . . . . 1 . . . . Extermination 3 | . . . . . . . . 3 . . . . Reinforcement 7 | . 1 . 4 1 . . 1 . . . . . Assault 2 | . . . . . . . 2 . . . . . Garrison 1 | . . . . . . . 1 . . . . . Intercept . | . . . . . . . . . . . . . Searches Triggered . | . . . . . . . . . . . . . Construction Impeded 2 | . . . 1 1 . . . . . . . . Haulers Reinforced . | . . . . . . . . . . . . . Active Scanning Responses . | . . . . . . . . . . . . . Cargo Convoy Interrupts . | . . . . . . . . . . . . . Stealth | -11 -10 -10 -9 -9 -9 -8 -8 -7 -7 -7 -7 -7 --------- Run | Yrd Mat Min Mat Min Exi Min Mat Fac Low Low Zio Dee Distress Signals 15 | . 1 1 6 1 . . 4 2 . . . . Communications Jammed . | . . . . . . . . . . . . . Distress Signals . | . . . . . . . . . . . . . Times Spotted 182 | . 20 5 50 14 . 2 22 12 3 12 . 42 Peak Tracking Total 24 | . 4 3 7 4 . 3 6 3 3 5 . 24 Tactical Retreats 18 | . . . 4 1 . 1 2 4 . 5 . 1 Traps | -11 -10 -10 -9 -9 -9 -8 -8 -7 -7 -7 -7 -7 ------- Run | Yrd Mat Min Mat Min Exi Min Mat Fac Low Low Zio Dee Traps Triggered 12 | . 2 . 4 . . . 1 5 . . . . Indirectly . | . . . . . . . . . . . . . Trap Hack Attempts . | . . . . . . . . . . . . . Triggered . | . . . . . . . . . . . . . Disarmed . | . . . . . . . . . . . . . Reprogrammed . | . . . . . . . . . . . . . Reused . | . . . . . . . . . . . . . Traps Extracted . | . . . . . . . . . . . . . Installed . | . . . . . . . . . . . . . Triggered . | . . . . . . . . . . . . . Machines | -11 -10 -10 -9 -9 -9 -8 -8 -7 -7 -7 -7 -7 ---------- Run | Yrd Mat Min Mat Min Exi Min Mat Fac Low Low Zio Dee Machines Disabled 13 | . 1 1 3 . . 1 4 1 . . . 2 Max in Single Turn 1 | . 1 1 1 . . 1 1 1 . . . 1 Garrison Access 1 | . . . . . . . 1 . . . . . Machines Repaired . | . . . . . . . . . . . . . Machines Dismantled . | . . . . . . . . . . . . . Machines Sabotaged . | . . . . . . . . . . . . . Overloaded Fab Kills . | . . . . . . . . . . . . . Hacking | -11 -10 -10 -9 -9 -9 -8 -8 -7 -7 -7 -7 -7 --------- Run | Yrd Mat Min Mat Min Exi Min Mat Fac Low Low Zio Dee Machines Accessed 39 | . 8 1 10 . 2 . 6 12 . . . . Terminals 26 | . 6 . 8 . . . 5 7 . . . . Fabricators 2 | . . . . . . . . 2 . . . . Repair Stations 1 | . . . 1 . . . . . . . . . Recycling Units 2 | . 2 . . . . . . . . . . . Scanalyzers 5 | . . . 1 . . . 1 3 . . . . Garrison Access . | . . . . . . . . . . . . . Total Hacks 96 | . 19 1 26 . 2 . 23 25 . . . . Successful 60 | . 11 1 14 . 2 . 18 14 . . . . Failed 35 | . 8 . 12 . . . 5 10 . . . . Catastrophic 5 | . . . 1 . . . 2 2 . . . . Database Lockouts 1 | . . . . . . . . 1 . . . . Manual 55 | . 19 . 10 . 2 . 15 5 . . 4 . Terminals 69 | . 17 . 17 . . . 19 16 . . . . Fabricators 2 | . . . . . . . . 2 . . . . Repair Stations 4 | . . . 4 . . . . . . . . . Recycling Units 2 | . 2 . . . . . . . . . . . Scanalyzers 16 | . . . 5 . . . 4 7 . . . . Garrison Access . | . . . . . . . . . . . . . Terminal Hacks 31 | . 6 1 4 . 2 . 11 7 . . . . Record 1 | . . . . . 1 . . . . . . . Robot Analysis 4 | . 2 . . . . . 1 1 . . . . Prototype ID Bank 6 | . 2 . 1 . . . 3 . . . . . Open Door 1 | . . 1 . . . . . . . . . . Open DSF 1 | . . . . . . . . 1 . . . . Level Access Points 1 | . . . . . . . 1 . . . . . Branch Access Points 2 | . . . . . . . 1 1 . . . . Alert Level 1 | . . . . . . . 1 . . . . . Unreport Threat 3 | . . . 1 . . . 1 1 . . . . Locate Traps 1 | . . . . . . . . 1 . . . . Dispatch Records 1 | . . . . . . . 1 . . . . . Transport Status 1 | . . . . . . . . 1 . . . . Recall Reinforcements 2 | . . . 2 . . . . . . . . . Hauler Manifests 4 | . 2 . . . . . 1 1 . . . . Registered Components 1 | . . . . . . . 1 . . . . . Proto ID Catalog 1 | . . . . . 1 . . . . . . . Fabricator Hacks 2 | . . . . . . . . 2 . . . . Build 2 | . . . . . . . . 2 . . . . Repair Station Hacks 3 | . . . 3 . . . . . . . . . Scan Component 2 | . . . 2 . . . . . . . . . Repair 1 | . . . 1 . . . . . . . . . Recycling Unit Hacks . | . . . . . . . . . . . . . Scanalyzer 14 | . . . 5 . . . 4 5 . . . . Insert Component 3 | . . . 1 . . . . 2 . . . . Retrieve Study 11 | . . . 4 . . . 4 3 . . . . Garrison Access Hacks . | . . . . . . . . . . . . . Unauthorized Hacks 10 | . 5 . 2 . . . 3 . . . . . Terminals 8 | . 3 . 2 . . . 3 . . . . . Botnet 8 | . 3 . 2 . . . 3 . . . . . Fabricators . | . . . . . . . . . . . . . Repair Stations . | . . . . . . . . . . . . . Recycling Units 2 | . 2 . . . . . . . . . . . Tunnel 2 | . 2 . . . . . . . . . . . Scanalyzers . | . . . . . . . . . . . . . Garrison Access . | . . . . . . . . . . . . . Data Cores Recovered . | . . . . . . . . . . . . . Used . | . . . . . . . . . . . . . Hacking Detections 30 | . 6 . 10 . . . 6 8 . . . . Full Trace Events 3 | . 1 . 1 . . . . 1 . . . . Feedback Events . | . . . . . . . . . . . . . Feedback Blocked . | . . . . . . . . . . . . . Robot Schematics Acquired 3 | . . . . . . . . . . . 3 . Robots Built . | . . . . . . . . . . . . . Authchips . | . . . . . . . . . . . . . Time . | . . . . . . . . . . . . . Total Robot Build Rating . | . . . . . . . . . . . . . Part Schematics Acquired 16 | . . . . . . . . . . . 16 . Parts Built 4 | . . . . . . . . 4 . . . . Authchips . | . . . . . . . . . . . . . Time 212 | . . . . . . . . 212 . . . . Total Part Build Rating 24 | . . . . . . . . 24 . . . . Part Studies Acquired 11 | . . . 4 . . . 4 3 . . . . Parts Repaired 1 | . . . 1 . . . . . . . . . Time 32 | . . . 32 . . . . . . . . . Parts Recycled . | . . . . . . . . . . . . . Recycled Matter . | . . . . . . . . . . . . . Retrieved Matter . | . . . . . . . . . . . . . Retrieved Components . | . . . . . . . . . . . . . Parts Scanalyzed . | . . . . . . . . . . . . . Part Schematics Acquired . | . . . . . . . . . . . . . Parts Damaged . | . . . . . . . . . . . . . Bothacking | -11 -10 -10 -9 -9 -9 -8 -8 -7 -7 -7 -7 -7 ------------ Run | Yrd Mat Min Mat Min Exi Min Mat Fac Low Low Zio Dee Used RIF Installer . | . . . . . . . . . . . . . Robots Hacked . | . . . . . . . . . . . . . Non-combat . | . . . . . . . . . . . . . Combat . | . . . . . . . . . . . . . Robot Hacks Applied . | . . . . . . . . . . . . . Relay Couplers Released 4 | . . . . . . . . 4 . . . . Programmers 4 | . . . . . . . . 4 . . . . Fabnet Peak Effective % . | . . . . . . . . . . . . . Robots Rewired . | . . . . . . . . . . . . . Allies Hacked . | . . . . . . . . . . . . . Hacks Repelled . | . . . . . . . . . . . . . Allies | -11 -10 -10 -9 -9 -9 -8 -8 -7 -7 -7 -7 -7 -------- Run | Yrd Mat Min Mat Min Exi Min Mat Fac Low Low Zio Dee Total Allies 4 | . . . . 4 . . . . . . . . Largest Group 4 | . . . . 4 3 3 2 . . . . . Highest-Rated Group 71 | . . . . 71 40 40 32 . . . . . Highest-Rated Ally 31 | . . . . 31 16 16 16 . . . . . Total Orders . | . . . . . . . . . . . . . Ally Attacks 48 | . . . . . . 23 25 . . . . . Total Damage 488 | . . . . . . 202 286 . . . . . Kills 6 | . . . . . . 4 2 . . . . . Allies Corrupted . | . . . . . . . . . . . . . Allies Melted . | . . . . . . . . . . . . . Intel | -11 -10 -10 -9 -9 -9 -8 -8 -7 -7 -7 -7 -7 ------- Run | Yrd Mat Min Mat Min Exi Min Mat Fac Low Low Zio Dee Active Infowar (turns) 2570 | 11 1379 832 348 . . . . . . . . . Seismic 2570 | 11 1379 832 348 . . . . . . . . . Robot Analysis Total 4 | . 2 . . . . . 1 1 . . . . Derelict Logs Recovered 7 | . . 1 . 1 . . . . 1 1 3 . Drone Launches . | . . . . . . . . . . . . . Drone Recoveries . | . . . . . . . . . . . . . Exploration | -11 -10 -10 -9 -9 -9 -8 -8 -7 -7 -7 -7 -7 ------------- Run | Yrd Mat Min Mat Min Exi Min Mat Fac Low Low Zio Dee Turns Passed 13415 | 255 1394 854 2431 1529 1625 978 1464 1186 171 356 589 583 Spaces Moved 10272 | 129 768 513 1239 841 1010 577 659 1908 243 509 1116 760 Core 32 | 1 . . . . . . . . . . . 31 Treads 5688 | 128 728 497 1239 841 1010 577 659 9 . . . . Legs . | . . . . . . . . . . . . . Wheels 56 | . 40 16 . . . . . . . . . . Hover . | . . . . . . . . . . . . . Flight 4496 | . . . . . . . . 1899 243 509 1116 729 Fastest Speed 50 | 50 105 105 155 160 160 160 160 50 50 50 50 50 Average Speed 112 | 159 157 156 158 160 160 160 187 50 50 50 50 50 Slowest Speed 232 | 160 160 160 200 160 160 160 232 232 50 50 50 150 Overloaded Moves . | . . . . . . . . . . . . . Propulsion Burnouts . | . . . . . . . . . . . . . Robots Hopped 32 | . . . . . . . . 30 . . . 2 Potential Cave-ins 3 | . . . . . . . 3 . . . . . Cave-ins Triggered . | . . . . . . . . . . . . . Exploration Rate (%) 72 | 5 98 74 99 99 92 95 39 47 44 66 90 88 Regions Visited 12 Branch Regions 8 Pre-discovered Areas 6 | . 2 1 . . 1 . . . . . 2 . Known Exits Taken 3 | . . . . . . . 1 1 . . 1 . Unknown Exits Taken 9 | 1 1 1 1 1 1 1 . . 1 1 . . Scrap Searched 10 | . . 1 . 1 . 1 . . 3 1 3 . Spaces Dug 13 | . 1 . 2 2 . . 7 1 . . . . Terrain Destroyed 284 | . 22 16 60 34 . 17 9 1 8 . . 117 Melee 8 | . . . 2 2 . . 3 1 . . . . Projectile 16 | . 2 1 2 . . . 6 . . . . 5 AOE 260 | . 20 15 56 32 . 17 . . 8 . . 112 Terrain Rammed . | . . . . . . . . . . . . . Walls Destroyed . | . . . . . . . . . . . . . Machines Disabled . | . . . . . . . . . . . . . Actions | -11 -10 -10 -9 -9 -9 -8 -8 -7 -7 -7 -7 -7 --------- Run | Yrd Mat Min Mat Min Exi Min Mat Fac Low Low Zio Dee Total 11371 | 153 862 549 1509 961 1023 619 796 2035 273 566 1142 883 Wait 308 | 2 14 8 42 71 . 25 30 64 11 29 . 12 Move 10200 | 128 767 512 1238 840 1009 576 658 1851 242 508 1115 756 Hop 28 | . . . . . . . . 26 . . . 2 Pick Up 101 | 4 15 5 28 1 6 1 12 15 1 . 6 7 Fast Attach 36 | 7 . . 9 . . 1 5 3 2 . 2 7 Attach 29 | . . 1 7 1 . 2 3 5 . . . 10 Detach 14 | . . . . . 1 1 1 3 . . 2 6 Swap 128 | 1 14 6 28 8 1 6 19 11 5 8 8 13 Drop 108 | . 6 6 31 1 6 . 18 21 3 1 7 8 Fire 380 | 11 46 8 115 32 . 7 47 35 9 20 2 48 Melee 22 | . . . 8 7 . . 3 1 . . . 3 Ram 11 | . . . . . . . . . . . . 11 Kick . | . . . . . . . . . . . . . Crush 6 | . . 3 3 . . . . . . . . . Escape Stasis . | . . . . . . . . . . . . . Rewire . | . . . . . . . . . . . . . Trap . | . . . . . . . . . . . . . Miscellaneous . | . . . . . . . . . . . . . Route ------- -11/Scrapyard -10/Materials (discovered 5 exits: *Mat x3 / *Min / [*Sub]) -10/Mines -9/Materials (discovered 7 exits: *Mat x3 / [*Min x2] / [*Sto x2]) -9/Mines (discovered 4 exits: *Mat x2 / *Exi / *Zio) -9/Exiles -8/Mines (discovered 2 exits: *Mat x2) -8/Materials (discovered 3 exits: *Fac x3) -7/Factory (discovered 3 exits: [*Fac] / *Low x2) -7/Lower Caves -7/Lower Caves -7/Zion (discovered 2 exits: *Dee / [*Pro]) -7/Deep Caves History --------- Turn | Location | Event 16 | -11/Scrapyard | Discovered new exit (range 16) 256 | -11/Scrapyard | Entered Materials 304 | -10/Materials | Build established: Mutant 462 | -10/Materials | Discovered new exit (range 9) 605 | -10/Materials | Discovered new exit (range 8) 822 | -10/Materials | Discovered new exit (range 11) 1234 | -10/Materials | Discovered new exit (range 16) 1463 | -10/Materials | Discovered new exit (range 5) 1650 | -10/Materials | Entered Mines 1785 | -10/Mines | Learned location of Mines (-8) 1921 | -10/Mines | Found a hidden stash of uninstalled traps 2051 | -10/Mines | Assembled infested the area 2056 | -10/Mines | Assisted by a Guerilla fighting off Assembled 2146 | -10/Mines | Discovered new exit (range 7) 2229 | -10/Mines | Met a Derelict who couldn't figure out how to use a Trap Extractor 2490 | -10/Mines | Core integrity fell below 50% 2504 | -10/Mines | Entered Materials 2504 | -9/Materials | Evolved 2 slots: Propulsion x1, Utility x1 3106 | -9/Materials | Discovered new exit (range 16) 3255 | -9/Materials | Discovered new exit (range 9) 3384 | -9/Materials | Discovered new exit (range 10) 3484 | -9/Materials | Discovered new exit (range 15) 3679 | -9/Materials | Discovered new exit (range 16) 3895 | -9/Materials | Discovered new exit (range 16) 4226 | -9/Materials | Discovered new exit (range 4) 4742 | -9/Materials | Repaired Med. Armor Plating? 4935 | -9/Materials | Entered Mines 4959 | -9/Mines | Learned location of 1 exit from Materials 5059 | -9/Mines | Received a Rocket Launcher from a helpful Derelict 5324 | -9/Mines | Excavation squad dispatched 5324 | -9/Mines | A large section of the Mines collapsed 5402 | -9/Mines | Deemed a non-threat by the Exiles lab entrance 5402 | -9/Mines | Discovered new exit (range 5) 6087 | -9/Mines | Assisted by bots powering up and referring to "LRC-V3" 6109 | -9/Mines | Discovered new exit (range 8) 6122 | -9/Mines | Received a Mining Laser from a helpful Derelict 6179 | -9/Mines | Discovered new exit (range 6) 6180 | -9/Mines | A Derelict revealed a hidden shortcut to a safe place 6464 | -9/Mines | Entered Exiles 6464 | -9/Exiles | Accompanied by 3 allies 6505 | -9/Exiles | Met 8R-AWN 6531 | -9/Exiles | Met EX-HEX 6576 | -9/Exiles | Met EX-BIN 6805 | -9/Exiles | Met EX-DEC 6831 | -9/Exiles | Visited The Gauntlet 7155 | -9/Exiles | Aligned with FarCom system 7157 | -9/Exiles | Given EX-Vault access code 7197 | -9/Exiles | Opened EX-Vault 7213 | -9/Exiles | Found Flying Fortress v7 7251 | -9/Exiles | Warned to stay clear of 0b10 Research branches 7324 | -9/Exiles | Learned location of Zion (-7) 7720 | -9/Exiles | Discovered new exit (range 12) 8089 | -9/Exiles | Left Exiles lab with Flying Fortress v7 8089 | -9/Exiles | Entered Mines 8089 | -8/Mines | Accompanied by 3 allies 8099 | -8/Mines | Discovered new exit (range 15) 8557 | -8/Mines | Discovered new exit (range 9) 9067 | -8/Mines | Entered Materials 9067 | -8/Materials | Accompanied by 2 allies 9067 | -8/Materials | Evolved 2 slots: Utility x2 9068 | -8/Materials | Identified exit to Factory 9380 | -8/Materials | Garrison activated, responded to threat 9455 | -8/Materials | Build established: Scavenger-Mutant 10440 | -8/Materials | Build established: Mutant 10531 | -8/Materials | Entered Factory 10531 | -7/Factory | Evolved 2 slots: Propulsion x1, Utility x1 10568 | -7/Factory | Identified exit to Lower Caves 10646 | -7/Factory | Identified exit to DSF 10731 | -7/Factory | Fabricated Energy Well (x2) 10936 | -7/Factory | Fabricated Graphene Brace? 11393 | -7/Factory | Discovered new exit (range 11) 11594 | -7/Factory | Central database locked down 11717 | -7/Factory | Entered Lower Caves 11772 | -7/Lower Caves | Attracted the attention of an 0b10 checkpoint 11858 | -7/Lower Caves | Learned location of 1 exit from Proximity Caves 11872 | -7/Lower Caves | Discovered new exit (range 6) 11888 | -7/Lower Caves | Entered another Lower Caves area 12237 | -7/Lower Caves | Discovered new exit (range 14) 12244 | -7/Lower Caves | Entered Zion 12257 | -7/Zion | Acquired unknown access codes intercepted by a Zionite 12269 | -7/Zion | Discovered new exit (range 16) 12301 | -7/Zion | Found CR-A16's Pointy Stick 12307 | -7/Zion | System corruption cleaned by Quarantine Array 12318 | -7/Zion | Learned Factory stockpile data 12319 | -7/Zion | Learned Factory stockpile data 12360 | -7/Zion | Visited the Megawrench Repair Shop 12442 | -7/Zion | Rebuked by Imprinter 12510 | -7/Zion | Learned 8 Factory zone layouts 12513 | -7/Zion | Learned location of Data Miner (-6) 12536 | -7/Zion | Identified exit to Deep Caves 12598 | -7/Zion | Found Prototype Special Weapon 12598 | -7/Zion | Identified RU-N14's Throwing Claymores 12605 | -7/Zion | Found RU-N14's Throwing Claymores 12607 | -7/Zion | Found RU-N14's Throwing Claymores 12608 | -7/Zion | Found RU-N14's Throwing Claymores 12715 | -7/Zion | Megawrench repaired 6 parts 12823 | -7/Zion | Opened final containment barrier to the Deep Caves 12831 | -7/Zion | Saw the warning signs outside the Deep Caves entrance 12833 | -7/Zion | Entered Deep Caves 12900 | -7/Deep Caves | Attacked by Z-Imprinter 12932 | -7/Deep Caves | Destroyed Z-Imprinter 13034 | -7/Deep Caves | Z-Facility disabled 13184 | -7/Deep Caves | Lost 3 parts (2u1w) 13189 | -7/Deep Caves | Found Prototype Protection 13189 | -7/Deep Caves | Identified Zio. Heavy Carapace 13199 | -7/Deep Caves | Found Zio. Heavy Carapace 13347 | -7/Deep Caves | Spotted Golem 13359 | -7/Deep Caves | Core integrity fell below 50% 13369 | -7/Deep Caves | Destroyed Golem 13382 | -7/Deep Caves | Released all parts (6) 13385 | -7/Deep Caves | Triggered Deep Caves wall 13387 | -7/Deep Caves | Found GOLEM Unit 13398 | -7/Deep Caves | Lost 4 parts (1p1n2u) 13409 | -7/Deep Caves | Core integrity fell below 20% 13416 | -7/Deep Caves | Destroyed by as-67067 with Assembled Heavy Rifle Last Messages --------------- 13382_ Released Lrg. Storage Unit. 13382_ Released Imp. Cooling System. 13385_ The wall dematerializes. [Achievement: That's One Door That Should Stay Closed] 13387_ Acquired GOLEM Unit. 13388_ GOLEM Unit beginning Asb. Alloy Leg integration. 13390_ Destroyed Carbon-fiber Leg. 13405_ Slammed into as-76108. 13409_ Slammed into as-61836. 13410_ Slammed into as-96487. 13410_ Destabilizing: System interference. 13410_ GOLEM Unit temporarily disabled. 13411_ Slammed into as-11771. 13411_ Asb. Alloy Leg broken. 13411_ Destabilizing: Short circuit. 13412_ Slammed into as-33469. 13413_ Slammed into as-73657. 13414_ Slammed into as-37462. 13415_ Slammed into as-67067. 13416_ Slammed into as-25018. Map ----- +----------------------------------------------------+ | | | | | | | | | | | | | | | | | | | | | | | | | | | | | | | | | | | | | | | | | | | ????????""#################?????????????? | | ????????" a #????????#####? | | ?????????" a a#########???????## ## | | ????????""" aaa a #???????????# # | | ????????" a@######??????????## | | ????????" aa# # #??????????## | | ????????"" aaa#/# #??????????# ## | | ????????" a *!]# ####???????# #### | | ????????"" a ![!# ## #???????## ##??# | | ????????" a !!] ## #????????####???? | | ????????""" a !! "# #???????????????? | | ????????" ## #???????????????? | | ????????" # #####???????????? | | ????????" a #????######## | | ????????# ###????# | | ????????"" ##??????# ###### | | ?????????"a ###???????# #????# | | ?????????" #???????# #???## | | ?????????" ]b "#"##??????# ##### | | ?????????" ### #??????# ## | | ????????# ### ####??## | | ????????# # #??# | | ???????? ####??# | | ???????? ###??# | | ??????? / #??## | | ??????? * ###???## ### | | ???????? ##?????######? | | ????????# #???????### ? | | ????????? / / #???????# ? | +----------------------------------------------------+ Best States ------------- Heat Dissipation 88 Coolant Potential 50 Energy Generation 27 Energy Capacity 640 Matter Stores 300 Matter Capacity 300 Sight Range 16 Terrain Scan Density 10 EM Shielding 2 Armor Coverage 1200 Resistance: KI 20 Evasion (%) 60 Targeting Accuracy 8 Core Analysis 6 Recoil Reduction 3 Offensive Hacking 10 Item Schematics ----------------- Core Analyzer | -7/Zion | Archive Hyp. Gauss Rifle | -7/Zion | Archive Xenon Bombardment Thruster | -7/Zion | Archive Fission Core | -7/Zion | Archive Hvy. Laser | -7/Zion | Archive Lgt. Angular Momentum Engine | -7/Zion | Archive Force Booster | -7/Zion | Archive Hvy. Phase Cannon | -7/Zion | Archive Imp. Plasma Cutter | -7/Zion | Archive Arc Projector | -7/Zion | Archive Imp. Medium Treads | -7/Zion | Archive Thermic Laser | -7/Zion | Archive Coolant Injector | -7/Zion | Archive System Restoration Module | -7/Zion | Archive Energy Well | -7/Zion | Archive Lrn. Phase Cannon | -7/Zion | Archive Robot Schematics ------------------ I-36 Angel | -7/Zion | Archive B-48 Gladiator | -7/Zion | Archive S-27 Virus | -7/Zion | Archive Fabricated ------------ Energy Well | x2 | -7/Factory | Preloaded Graphene Brace | x2 | -7/Factory | Preloaded Repaired ---------- Med. Armor Plating | 15% | -9/Materials Studied --------- Lgt. Treads | -9/Materials | Hacked Grenade Launcher | -9/Materials | Hacked Beam Cannon | -9/Materials | Hacked Arm. Wheel | -9/Materials | Hacked Hvy. Particle Cannon | -8/Materials | Hacked Particle Cannon | -8/Materials | Hacked Missile Launcher | -8/Materials | Hacked VTOL Module | -8/Materials | Hacked Plasma Cannon | -7/Factory | Hacked Shock Bomb Launcher | -7/Factory | Hacked Imp. EM Pulse Cannon | -7/Factory | Hacked Alien Tech Used ----------------- None Achievements -------------- Are We The Baddies? That's One Door That Should Stay Closed Challenges ------------ None Game ------ Seed WeightProjectionNanosword Manual? 0 Play Time 01:46:28 Cumulative 266.5 hours Start 2026.07.22 @ 21:13:47 End 2026.07.26 @ 00:46:48 Sessions 11 Manual Loads 0 Difficulty Rogue Special Mode None Game No. 140 Rogue 136 Adventurer 4 Explorer 0 Win Type - Total 6 Types 3/0/1/1/0/0/0/1/0/0 Lore% 79 Gallery% 70 Achievement% 55 Wizard Run 0 Options --------- Layout 0 ASCII 0 Keyboard 1 Movement Vi Keybinds 0 Fullscreen 2 Font 24/Crisp Map View 76x50 Zoom Use 0% Tactical HUD 1 Map Filters NONE Filters NONE Steam 1 RUN: f0a26f12-0ec0-4d7c-b1da-537008a25a12